bitfinex/quotes_ETHUSD_20260219
["timestamp","ask_amount","ask_price","bid_price","bid_amount"]
[1771491976432,1.17808859,1971.4,1970.3,1.17723537]
[1771491976433,0.411,1971.1,1970.3,1.17723537]
[1771491976808,1.17808859,1971.4,1970.3,1.17723537]
[1771491977028,0.411,1971.3,1970.3,1.17723537]
[1771491977331,1.26794137,1971.7,1970.3,1.17723537]
[1771491977332,1.17808859,1971.6,1970.5,1.17623537]
[1771491977710,0.411,1971.5,1970.5,1.17623537]
[1771491979312,0.411,1971.5,1970.7,1.17623537]
[1771491979632,0.0011,1971.7,1970.7,1.17623537]
[1771491979804,0.8631,1971.7,1970.7,1.17623537]
[1771491980336,2.04118859,1971.7,1970.7,1.17623537]
[1771491981236,2.04118859,1971.7,1970.8,1.26852039]
[1771491981412,2.04118859,1971.7,1970.8,2.44475576]
[1771491981940,3.30913138,1971.7,1970.8,2.44475576]
[1771491982238,2.04118859,1971.7,1970.8,2.44475576]
[1771491982640,3.30913126,1971.7,1970.8,2.44475576]
[1771491983309,2.04118859,1971.7,1970.8,2.44475576]
[1771491983827,3.30913221,1971.7,1970.8,2.44475576]
[1771491984026,1.17808859,1971.6,1970.8,2.44475576]
[1771491984419,1.17808859,1971.6,1970.8,1.26852039]
[1771491984623,1.17808859,1971.6,1970.7,1.26855762]
[1771491985412,1.17808859,1971.4,1970.4,0.001]
[1771491988162,1.17808859,1971.2,1970.4,0.001]
[1771491988347,0.861,1971.1,1970.4,0.001]
[1771491988717,1.775,1971.1,1970.4,0.001]
[1771491989022,2.95308859,1971.1,1970.4,0.001]
[1771491990317,1.26839167,1971.0,1970.4,0.001]
[1771491990745,2.44648026,1971.0,1970.4,0.001]
[1771491991017,1.17808859,1970.9,1970.4,0.001]
[1771491991955,2.95308859,1971.1,1970.4,0.001]
[1771491992454,4.22142318,1971.1,1970.4,0.001]
[1771491993059,0.914,1971.2,1970.5,1.17623537]
[1771491993262,0.861,1971.1,1970.5,1.17723537]
[1771491993764,0.86,1971.1,1970.5,1.17723537]
[1771491993929,2.44620077,1971.5,1970.5,1.17723537]
[1771491993930,1.17808859,1971.5,1970.5,1.17723537]
[1771491994118,0.0011,1971.6,1970.5,1.17723537]
[1771491994314,0.5101,1971.6,1970.5,1.17723537]
[1771491994518,1.17918859,1971.6,1970.7,1.17623537]
[1771491994759,1.98918859,1971.6,1970.7,1.17623537]
[1771491996642,1.98918859,1971.6,1970.8,2.32970699]
[1771491997672,3.2571947,1971.6,1970.8,2.32970699]
[1771491997876,1.98918859,1971.6,1970.8,2.32970699]
[1771491999176,0.0011,1971.6,1970.9,1.0611866]
[1771491999767,0.0011,1971.7,1970.9,1.0611866]
[1771492000448,0.411,1972.1,1971.1,1.0611866]
[1771492000675,0.683,1972.3,1971.3,1.0611866]
[1771492001178,0.683,1972.3,1971.5,1.0611866]
[1771492002475,0.858,1972.4,1971.5,1.0611866]
[1771492002682,1.06049386,1972.5,1971.5,1.0611866]
[1771492002882,1.26734528,1972.7,1971.5,1.0611866]
[1771492002883,0.857,1972.6,1971.5,1.0611866]
[1771492003082,0.857,1972.6,1971.7,1.0611866]
[1771492003783,1.06049386,1972.7,1971.7,1.0611866]
[1771492003984,0.857,1972.7,1971.7,1.0611866]
[1771492004781,1.06049386,1972.6,1971.7,1.0611866]
[1771492005082,1.06049386,1972.6,1971.8,1.26787706]
[1771492005302,1.06049386,1972.6,1971.8,2.32906366]
[1771492005969,2.32785855,1972.6,1971.8,2.32906366]
[1771492006173,1.06049386,1972.6,1971.8,2.32906366]
[1771492006976,0.0011,1972.5,1971.8,2.32906366]
[1771492008190,0.0011,1972.5,1971.9,1.0611866]
[1771492008357,0.0011,1972.5,1971.8,1.26787706]
[1771492008557,1.06159386,1972.5,1971.8,1.26787706]
[1771492009289,2.32902786,1972.5,1971.8,1.26787706]
[1771492009658,1.06159386,1972.5,1971.8,1.26787706]
[1771492010687,1.06049386,1972.4,1971.8,1.26787706]
[1771492010895,1.06049386,1972.4,1971.5,1.0611866]
[1771492011184,1.06049386,1972.4,1971.4,1.26813432]
[1771492011696,1.06049386,1972.4,1971.2,5.07253728]
[1771492011697,1.06049386,1972.2,1971.2,5.07253728]
[1771492012065,0.855,1972.1,1971.3,1.0611866]
[1771492012887,1.26755564,1972.3,1971.3,1.0611866]
[1771492012888,2.32802243,1972.4,1971.3,1.0611866]
[1771492013188,0.855,1972.2,1971.3,1.0611866]
[1771492013359,1.91549386,1972.2,1971.3,1.0611866]
[1771492013559,1.06049386,1972.2,1971.4,1.26813432]
[1771492013785,3.10812458,1972.2,1971.4,1.26813432]
[1771492013970,2.32803163,1972.4,1971.5,1.0611866]
[1771492014180,1.768,1972.3,1971.5,1.0611866]
[1771492014703,1.91449386,1972.3,1971.5,1.0611866]
[1771492014985,1.06049386,1972.3,1971.5,1.0611866]
[1771492015193,1.91449386,1972.3,1971.5,1.0611866]
[1771492015693,0.854,1972.4,1971.7,1.0611866]
[1771492016059,1.91559386,1972.5,1971.7,1.0611866]
[1771492018374,1.91559386,1972.5,1971.8,1.26787706]
[1771492020695,1.91559386,1972.5,1971.8,2.35708285]
[1771492020696,0.0011,1972.5,1971.8,2.35708285]
[1771492021294,0.0011,1972.5,1971.8,2.35808285]
[1771492021468,0.0011,1972.4,1971.8,2.35808285]
[1771492022262,1.01731336,1972.4,1971.8,1.26887706]
[1771492022866,2.283769,1972.3,1971.8,0.001]
[1771492023299,1.01621336,1972.2,1971.8,0.001]
[1771492024676,0.0011,1972.4,1971.8,0.001]
[1771492024896,0.852,1972.3,1971.8,0.001]
[1771492026782,2.28480734,1972.4,1971.8,0.001]
[1771492026987,0.852,1972.3,1971.8,0.001]
[1771492027686,2.28480734,1972.4,1971.8,0.001]
[1771492027687,1.01731336,1972.4,1971.8,0.001]
[1771492028015,0.676,1972.3,1971.8,0.001]
[1771492030915,1.74585367,1972.3,1971.8,0.001]
[1771492031787,0.8521,1972.4,1971.8,0.001]
[1771492031988,0.8521,1972.4,1971.8,1.02842436]
[1771492033396,0.8521,1972.4,1971.9,1.26781276]
[1771492035319,0.8521,1972.4,1971.9,1.26881276]
[1771492036222,0.0011,1972.3,1971.9,1.26881276]
[1771492037624,0.0011,1972.3,1971.9,0.001]
[1771492042122,1.07095367,1972.3,1971.9,0.001]
[1771492043024,0.0011,1972.3,1971.9,0.001]
[1771492044142,0.0011,1972.3,1972.0,2.29517283]
[1771492044928,0.0011,1972.5,1972.1,1.02742436]
[1771492045227,0.8501,1972.8,1972.1,1.02742436]
[1771492045628,1.06985367,1973.0,1972.1,1.02742436]
[1771492045629,3.4747378,1973.2,1972.1,1.02742436]
[1771492045822,3.86655094,1973.1,1972.1,1.02742436]
[1771492046016,3.01855094,1973.0,1972.1,1.02742436]
[1771492046220,3.01855094,1973.0,1972.3,1.02742436]
[1771492046940,0.8491,1973.2,1972.3,1.02742436]
[1771492048313,0.8491,1973.2,1972.4,2.29491574]
[1771492048721,0.8491,1973.2,1972.4,1.26749138]
[1771492048924,0.8491,1973.2,1972.5,1.02742436]
[1771492049530,0.0011,1973.1,1972.5,1.02742436]
[1771492050523,0.0011,1973.1,1972.6,1.26736287]
[1771492050840,0.0011,1973.1,1972.6,2.29478723]
[1771492051708,0.0011,1973.1,1972.7,1.02742436]
[1771492052419,0.0011,1973.1,1972.3,2.29498]
[1771492052605,0.0011,1973.1,1972.4,1.07721357]
[1771492053407,1.07095367,1973.1,1972.4,1.07721357]
[1771492053604,1.07095367,1973.1,1972.3,1.31734485]
[1771492053925,1.07095367,1973.1,1972.3,1.26755564]
[1771492054121,1.07095367,1973.1,1972.3,2.29498]
[1771492054316,0.0011,1973.1,1972.4,1.07721475]
[1771492054511,0.0011,1973.1,1972.5,1.26742712]
[1771492054936,0.0011,1973.1,1972.6,0.04978602]
[1771492055122,0.0011,1973.1,1972.5,2.34463867]
[1771492055311,0.0011,1973.1,1972.5,2.29485148]
[1771492055921,0.0011,1973.1,1972.5,7.85217991]
[1771492057036,0.94336412,1973.1,1972.5,6.82475555]
[1771492060217,0.94336412,1973.1,1972.5,1.26742712]
[1771492060744,1.78736412,1973.1,1972.5,1.26742712]
[1771492061241,1.78736412,1973.1,1972.6,0.001]
[1771492061451,0.0011,1973.0,1972.6,0.001]
[1771492063043,0.94336412,1973.0,1972.6,0.001]
[1771492063944,0.0011,1973.0,1972.6,0.001]
[1771492065330,0.8451,1973.0,1972.6,0.001]
[1771492067432,0.0011,1973.0,1972.6,5.55832843]
[1771492068346,0.0011,1973.0,1972.7,1.26729862]
[1771492070419,0.0011,1973.0,1972.6,6.01234695]
[1771492070625,0.0011,1973.2,1972.7,0.94210722]
[1771492073331,0.0011,1973.2,1972.8,2.2093416]
[1771492074048,0.0011,1973.2,1972.9,0.94210722]
[1771492074241,0.0011,1973.3,1972.9,0.94210722]
[1771492074547,0.94336412,1973.6,1973.0,0.94210722]
[1771492074548,0.0011,1973.6,1973.0,0.94210722]
[1771492074749,0.0011,1973.7,1973.1,0.94210722]
[1771492075454,0.0011,1973.7,1973.3,0.94210722]
[1771492075849,0.94336412,1974.0,1973.2,2.20908471]
[1771492076037,0.0011,1973.4,1973.2,1.26697749]
[1771492076350,0.0011,1974.0,1973.3,0.94210722]
[1771492077834,0.0011,1974.0,1973.4,1.26684909]
[1771492079553,0.0011,1974.0,1973.4,2.20895631]
[1771492079847,0.94336412,1974.0,1973.4,1.26684909]
[1771492080873,0.0011,1974.0,1973.4,2.16070812]
[1771492081037,0.97110725,1974.4,1973.5,0.89385903]
[1771492081873,0.97110725,1974.4,1973.7,0.89385903]
[1771492082151,2.65410725,1974.7,1973.7,0.89385903]
[1771492082946,0.97110725,1974.6,1973.7,0.89385903]
[1771492084140,0.97110725,1974.6,1973.8,1.26659235]
[1771492084341,0.97110725,1974.6,1973.8,2.16045138]
[1771492084877,0.97110725,1974.9,1973.9,0.89385903]
[1771492086234,0.97110725,1974.9,1974.1,0.89385903]
[1771492087259,0.96352998,1974.8,1974.0,1.26646403]
[1771492087441,0.96462998,1974.8,1974.0,1.26646403]
[1771492088037,0.96462998,1974.8,1974.0,2.16481189]
[1771492088959,0.96462998,1974.8,1974.1,0.89834786]
[1771492090952,0.96462998,1974.8,1974.0,1.26646403]
[1771492091872,0.96462998,1974.8,1974.1,5.54859154]
[1771492092675,0.96462998,1974.8,1974.1,6.4469394]
[1771492092974,0.0011,1974.8,1974.3,5.54859154]
[1771492093384,0.0011,1974.8,1974.4,1.26620745]
[1771492094455,0.96462998,1974.8,1974.4,1.26620745]
[1771492097390,0.8361,1974.9,1974.4,7.71314685]
[1771492097391,0.0011,1974.9,1974.4,7.71314685]
[1771492097572,0.0011,1975.1,1974.6,5.54859154]
[1771492098282,0.0011,1975.3,1974.9,1.26588688]
[1771492098484,0.0011,1975.4,1975.0,5.54859154]
[1771492098691,0.96352998,1975.7,1975.2,5.54859154]
[1771492098863,0.96352998,1975.7,1975.0,5.54859154]
[1771492099261,2.22890728,1975.7,1975.0,5.54859154]
[1771492099691,0.96352998,1975.7,1975.0,5.54859154]
[1771492099882,2.22890854,1975.7,1974.9,1.26588688]
[1771492100067,2.22891026,1975.7,1974.9,1.26588688]
[1771492100400,0.0011,1975.1,1974.9,1.26588688]
[1771492100601,2.22891026,1975.7,1974.9,1.26588688]
[1771492100823,0.96352998,1975.7,1974.9,1.26588688]
[1771492101112,2.22890504,1975.7,1974.9,1.26588688]
[1771492101335,0.96352998,1975.6,1974.6,5.06411758]
[1771492101512,0.96352998,1975.6,1974.1,0.89834786]
[1771492101812,1.26537506,1975.7,1974.1,0.89834786]
[1771492101813,0.96352998,1975.4,1974.1,2.16474773]
[1771492102009,0.96352998,1975.2,1974.1,2.16474773]
[1771492102189,0.96352998,1975.0,1974.1,2.16474773]
[1771492102613,2.22935317,1975.0,1974.1,2.16474773]
[1771492102813,0.96352998,1974.9,1974.1,2.16474773]
[1771492103011,0.96352998,1974.9,1974.1,1.26639987]
[1771492105006,2.22945148,1974.9,1974.1,1.26639987]
[1771492105822,0.96352998,1974.8,1974.1,1.26639987]
[1771492106499,0.96352998,1975.0,1974.1,2.16474773]
[1771492106694,0.96352998,1975.0,1974.1,1.26639987]
[1771492106993,0.96352998,1975.0,1974.1,2.16474773]
[1771492107921,0.96352998,1974.9,1974.1,1.26639987]
[1771492108621,0.96352998,1974.9,1974.0,1.26741085]
[1771492108828,0.96352998,1974.7,1974.0,0.001]
[1771492109497,0.96352998,1974.5,1974.0,0.001]
[1771492109692,0.96352998,1974.4,1974.0,0.001]
[1771492112229,1.79452998,1974.3,1974.0,0.001]
[1771492112427,1.79452998,1974.3,1974.2,0.001]
[1771492112722,0.831,1974.3,1974.0,0.001]
[1771492112909,0.96352998,1974.2,1974.0,0.001]
[1771492114835,2.22986876,1974.2,1974.0,0.001]
[1771492117225,0.96352998,1974.2,1974.0,0.001]
[1771492117894,2.22987611,1974.2,1974.0,0.001]
[1771492118093,0.96352998,1974.2,1974.0,0.001]
[1771492118302,2.22987816,1974.2,1974.0,0.001]
[1771492119215,0.96352998,1974.2,1974.0,0.001]
[1771492119622,1.26630962,1974.3,1974.0,0.001]
[1771492119827,0.833,1974.1,1974.0,0.001]
[1771492122525,7.95597415,1974.9,1974.0,0.001]
[1771492122526,2.13687138,1974.7,1974.0,0.001]
[1771492122704,0.779,1974.6,1974.1,5.55151015]
[1771492123249,1.64979953,1974.6,1974.0,0.001]
[1771492123525,0.87079953,1974.4,1974.0,0.001]
[1771492124102,2.13707111,1974.3,1974.0,0.001]
[1771492124417,0.834,1974.2,1974.0,0.001]
[1771492124818,0.834,1974.2,1974.1,0.001]
[1771492127616,0.0011,1974.4,1974.1,0.001]
[1771492127811,0.836,1974.3,1974.1,0.001]
[1771492128834,0.0011,1974.4,1974.1,0.001]
[1771492129041,0.836,1974.3,1974.1,0.001]
[1771492130134,0.0011,1974.4,1974.1,0.001]
[1771492130336,0.836,1974.3,1974.1,0.001]
[1771492130936,0.0011,1974.4,1974.1,0.001]
[1771492131115,0.836,1974.3,1974.1,0.001]
[1771492132340,1.70679953,1974.3,1974.1,0.001]
[1771492132717,0.836,1974.3,1974.1,0.001]
[1771492134541,0.0011,1974.4,1974.1,0.001]
[1771492134765,0.837,1974.2,1974.1,0.001]
[1771492138426,0.0011,1974.3,1974.1,0.001]
[1771492138843,0.8391,1974.4,1974.1,0.83867195]
[1771492139218,0.0011,1974.5,1974.1,0.83867195]
[1771492139638,0.0011,1974.5,1974.3,0.83767195]
[1771492140323,0.0011,1974.5,1974.1,1.26735926]
[1771492140526,0.87189953,1974.5,1974.1,0.001]
[1771492141939,0.0011,1974.5,1974.1,0.001]
[1771492142330,0.83825042,1974.5,1974.1,0.001]
[1771492143646,0.837,1974.4,1974.1,0.001]
[1771492144741,2.10321867,1974.4,1974.1,0.001]
[1771492144925,0.837,1974.4,1974.1,0.001]
[1771492145926,1.67415042,1974.4,1974.1,0.001]
[1771492147554,2.9403636,1974.4,1974.1,0.001]
[1771492148754,0.86381463,1974.3,1974.1,0.001]
[1771492149756,0.86381463,1974.2,1974.1,0.001]
[1771492150762,3.8981061,1974.2,1974.1,0.001]
[1771492150955,3.03429147,1974.2,1974.1,0.001]
[1771492151262,3.87429147,1974.2,1974.1,0.001]
[1771492151936,3.87386535,1974.2,1974.1,0.001]
[1771492152461,5.14020108,1974.2,1974.1,0.001]
[1771492152640,6.00401571,1974.2,1974.1,0.001]
[1771492153358,3.87386535,1974.2,1974.1,0.001]
[1771492153564,5.14020108,1974.2,1974.1,0.001]
[1771492154145,6.00401571,1974.2,1973.9,0.001]
[1771492154347,3.03386535,1974.1,1973.9,0.001]
[1771492154732,0.86381463,1974.0,1973.7,0.001]
[1771492154959,0.843,1973.9,1973.7,0.001]
[1771492155958,0.843,1973.9,1973.2,0.84670188]
[1771492156263,0.0011,1974.3,1973.4,0.84670188]
[1771492156460,0.843,1974.0,1973.4,0.84670188]
[1771492157749,0.843,1974.1,1973.4,0.84670188]
[1771492157948,0.0011,1974.3,1973.4,0.84670188]
[1771492158267,2.42819228,1974.5,1973.6,0.84670188]
[1771492158268,0.6761,1974.5,1973.6,0.84670188]
[1771492158635,0.0011,1974.5,1973.6,0.84670188]
[1771492158842,0.0011,1974.5,1973.5,1.26678489]
[1771492158843,0.0011,1974.5,1973.8,0.84670188]
[1771492160241,0.0011,1974.5,1973.9,1.26652819]
[1771492160548,0.0011,1974.5,1974.0,0.84670188]
[1771492162245,0.0011,1974.5,1974.2,0.84670188]
[1771492162447,0.0011,1974.4,1974.3,1.26627158]
[1771492163542,0.0011,1974.5,1974.3,1.26627158]
[1771492168292,0.0011,1974.5,1974.3,2.11297346]
[1771492168882,0.0011,1974.7,1974.5,2.1128452]
[1771492172089,0.0011,1974.7,1974.5,1.26614332]
[1771492175093,0.0011,1974.6,1974.5,1.26614332]
[1771492175279,0.86381463,1975.0,1974.5,1.26614332]
[1771492175494,0.0011,1974.9,1974.5,1.26614332]
[1771492178606,0.0011,1974.9,1974.5,2.06905387]
[1771492179330,0.0011,1975.6,1974.8,6.34957057]
[1771492179520,0.84303137,1975.6,1975.0,6.34957057]
[1771492179727,0.84193137,1975.3,1974.5,1.26614332]
[1771492180224,5.54666002,1975.4,1974.5,1.26614332]
[1771492180225,0.84193137,1975.1,1974.5,1.26614332]
[1771492182822,0.74145518,1975.1,1974.5,1.26614332]
[1771492183622,0.74145518,1975.1,1974.5,2.06905387]
[1771492183923,0.0011,1975.6,1974.7,0.80291055]
[1771492184114,0.0011,1975.6,1974.9,1.26588688]
[1771492184115,0.84193137,1975.5,1974.9,1.26588688]
[1771492184494,0.84193137,1975.5,1974.9,2.06879743]
[1771492187223,0.0011,1975.0,1974.9,2.06879743]
[1771492187403,0.84193137,1975.5,1974.9,2.06879743]
[1771492187799,0.0011,1975.1,1974.9,2.06879743]
[1771492188014,0.84193137,1975.5,1974.9,2.06879743]
[1771492188218,0.0011,1975.3,1974.9,2.06879743]
[1771492189005,0.0011,1975.3,1975.0,5.54666002]
[1771492191536,0.0011,1975.3,1975.1,1.26575869]
[1771492196264,0.0011,1975.3,1975.0,5.06303478]
[1771492197368,0.0011,1975.3,1975.0,5.86594533]
[1771492197558,0.84303137,1975.6,1975.0,11.41260535]
[1771492198963,0.0011,1975.6,1975.1,0.80291055]
[1771492200065,0.0011,1975.6,1975.1,0.80391055]
[1771492200454,0.0011,1975.5,1975.2,1.26569461]
[1771492200653,0.0011,1975.5,1975.2,2.06860516]
[1771492200862,0.0011,1975.5,1975.2,1.26569461]
[1771492201255,0.0011,1975.5,1975.3,0.83064425]
[1771492201455,0.0011,1975.8,1975.4,6.37730427]
[1771492201985,0.78579832,1976.0,1975.4,0.83064425]
[1771492202164,0.78579832,1976.2,1975.6,5.54666002]
[1771492202364,0.78579832,1976.2,1975.4,1.26556646]
[1771492202365,0.78579832,1976.0,1975.4,1.26556646]
[1771492204544,0.78579832,1975.9,1975.3,5.0624451]
[1771492207778,0.75715075,1975.8,1975.2,5.83051835]
[1771492208079,0.75715075,1976.1,1975.4,6.3145345]
[1771492208376,0.75715075,1976.2,1975.5,0.76787448]
[1771492208560,1.58515075,1976.4,1975.7,0.76787448]
[1771492208942,0.75715075,1976.3,1975.7,0.76787448]
[1771492209154,0.828,1976.4,1975.7,0.76787448]
[1771492209360,0.75715075,1976.5,1975.9,0.76787448]
[1771492209554,0.75715075,1976.5,1976.0,1.26518218]
[1771492211499,0.75715075,1976.5,1975.7,5.82936992]
[1771492211500,0.75715075,1976.4,1975.8,5.06109532]
[1771492211665,0.75715075,1976.3,1975.6,1.26543834]
[1771492212471,0.75715075,1976.1,1975.6,1.26543834]
[1771492216096,0.75715075,1976.1,1975.5,5.06199]
[1771492216472,0.75715075,1976.1,1975.5,5.82986448]
[1771492220968,0.828,1976.2,1975.6,0.76787448]
[1771492221169,1.58515075,1976.2,1975.6,0.76787448]
[1771492222471,1.58515075,1976.2,1975.7,1.26537429]
[1771492223086,2.85020497,1976.2,1975.6,2.03328136]
[1771492223298,0.75715075,1976.1,1975.6,1.26540688]
[1771492224298,1.26505422,1976.2,1975.6,2.03328136]
[1771492224503,0.0011,1976.5,1976.1,1.26511816]
[1771492224701,0.0011,1976.5,1976.2,5.54666002]
[1771492226287,0.0011,1976.4,1976.1,1.26511816]
[1771492226498,0.0011,1976.4,1975.9,1.26524621]
[1771492228476,0.0011,1976.4,1975.9,2.03312069]
[1771492229512,0.0011,1976.4,1976.0,0.76787448]
[1771492230522,5.05829545,1977.0,1976.1,0.76787448]
[1771492230523,0.75715075,1977.0,1976.1,0.76787448]
[1771492230696,0.39873241,1976.9,1976.3,0.76787448]
[1771492231018,0.75715075,1977.0,1976.3,0.76787448]
[1771492231224,1.1558675,1976.9,1976.2,1.26505414]
[1771492231388,0.75715075,1976.9,1976.2,1.26505414]
[1771492233128,0.75715075,1976.9,1976.2,2.03292862]
[1771492233694,0.75715075,1977.0,1976.2,2.03292862]
[1771492234127,0.75715075,1976.8,1976.2,1.26505414]
[1771492234315,0.75715075,1976.7,1976.2,1.26505414]
[1771492234914,0.75715075,1976.7,1976.0,2.03305666]
[1771492235233,0.75715075,1976.9,1976.1,0.76787448]
[1771492235534,0.75715075,1976.7,1976.0,2.03305666]
[1771492235898,0.75715075,1977.0,1976.1,0.76787448]
[1771492236225,1.15565905,1976.9,1976.1,0.76787448]
[1771492236534,0.75715075,1976.9,1976.1,0.76787448]
[1771492237202,0.75715075,1976.9,1976.2,1.26505414]
[1771492237525,0.00769039,1976.7,1976.2,1.26505414]
[1771492238126,0.76944882,1976.7,1976.2,1.26505414]
[1771492239132,0.76944882,1976.7,1976.0,1.26518218]
[1771492240109,0.76944882,1976.7,1976.0,1.99767856]
[1771492240309,0.00769039,1976.7,1976.1,0.73249638]
[1771492241844,0.00769039,1976.7,1976.2,1.26505414]
[1771492243050,0.76175843,1976.6,1976.0,5.06048377]
[1771492244004,0.76175843,1976.5,1976.0,1.26518218]
[1771492244508,0.76175843,1976.5,1975.9,1.26523166]
[1771492252146,0.76175843,1976.5,1976.0,0.001]
[1771492252542,0.76175843,1976.4,1976.0,0.001]
[1771492252745,0.76175843,1976.3,1976.0,0.001]
[1771492253640,1.16090681,1976.2,1976.0,0.001]
[1771492253814,0.39912124,1976.1,1976.0,0.001]
[1771492258445,1.26502384,1976.3,1976.0,0.001]
[1771492258615,0.39902256,1976.2,1976.0,0.001]
[1771492258817,1.26502384,1976.3,1976.0,0.001]
[1771492259053,0.39902307,1976.2,1976.0,0.001]
[1771492259253,1.26502384,1976.3,1976.0,0.001]
[1771492259459,0.39894753,1976.2,1976.0,0.001]
[1771492259633,1.26502384,1976.3,1976.0,0.001]
[1771492259834,0.3989471,1976.2,1976.0,0.001]
[1771492260021,1.26502384,1976.3,1976.0,0.001]
[1771492260356,0.39895291,1976.2,1976.0,0.001]
[1771492260563,1.26502384,1976.3,1976.0,0.001]
[1771492260735,0.3989355,1976.2,1976.0,0.001]
[1771492260933,2.02672987,1976.4,1976.0,0.001]
[1771492261147,3.42826586,1976.3,1976.0,0.001]
[1771492261327,0.39893589,1976.2,1976.0,0.001]
[1771492261527,1.26499664,1976.3,1976.0,0.001]
[1771492261743,0.39892465,1976.2,1976.0,0.001]
[1771492261953,2.0267343,1976.4,1976.0,0.001]
[1771492262152,3.42819733,1976.3,1976.0,0.001]
[1771492262328,0.39896355,1976.2,1976.0,0.001]
[1771492262655,0.76175843,1976.4,1976.0,0.001]
[1771492262854,0.7320693,1976.6,1976.0,6.26339516]
[1771492263061,1.22101041,1976.5,1976.1,1.26511816]
[1771492263270,1.27242992,1976.7,1976.2,5.53848401]
[1771492263271,0.00769039,1976.7,1976.2,5.53848401]
[1771492263428,0.39908501,1976.6,1976.2,6.26239516]
[1771492263626,0.82969039,1976.7,1976.2,6.26239516]
[1771492263826,0.39908477,1976.6,1976.2,6.26239516]
[1771492264058,0.82969039,1976.7,1976.2,6.26239516]
[1771492264261,0.39908475,1976.6,1976.2,6.26239516]
[1771492264456,0.82969039,1976.7,1976.2,6.26239516]
[1771492264766,0.82969039,1976.7,1976.0,0.001]
[1771492264767,0.7320693,1976.5,1976.0,0.001]
[1771492264971,1.13116483,1976.4,1976.0,0.001]
[1771492265128,0.7320693,1976.4,1976.0,0.001]
[1771492266157,1.9970071,1976.4,1976.0,0.001]
[1771492266334,0.7320693,1976.3,1976.0,0.001]
[1771492266534,1.2660378,1976.4,1976.0,0.001]
[1771492266535,0.0011,1976.4,1976.0,0.001]
[1771492268169,0.71206354,1976.4,1976.0,0.001]
[1771492268341,0.39927549,1976.3,1976.0,0.001]
[1771492268539,0.71206354,1976.4,1976.0,0.001]
[1771492268741,0.39927564,1976.3,1976.0,0.001]
[1771492268966,0.71206354,1976.4,1976.0,0.001]
[1771492269268,0.39927564,1976.3,1976.0,0.001]
[1771492269474,0.71206354,1976.4,1976.0,0.001]
[1771492269672,0.39930879,1976.3,1976.0,0.001]
[1771492269889,0.71206354,1976.4,1976.0,0.001]
[1771492270062,0.39930878,1976.3,1976.0,0.001]
[1771492270261,0.71206354,1976.4,1976.0,0.001]
[1771492270461,0.39936637,1976.3,1976.0,0.001]
[1771492270763,0.71206354,1976.4,1976.0,0.001]
[1771492270962,0.39936636,1976.3,1976.0,0.001]
[1771492271164,0.71206354,1976.4,1976.0,0.001]
[1771492271366,0.39938537,1976.3,1976.0,0.001]
[1771492271665,0.71206354,1976.4,1976.0,0.001]
[1771492271865,0.3994394,1976.3,1976.0,0.001]
[1771492272162,0.71206354,1976.4,1976.0,0.001]
[1771492272359,0.39945776,1976.3,1976.0,0.001]
[1771492272552,0.71206354,1976.4,1976.0,0.001]
[1771492272751,0.39952381,1976.3,1976.0,0.001]
[1771492272949,0.71206354,1976.4,1976.0,0.001]
[1771492273187,0.39952381,1976.3,1976.0,0.001]
[1771492273500,0.71206354,1976.4,1976.0,0.001]
[1771492273784,0.39957769,1976.3,1976.0,0.001]
[1771492273967,0.71206354,1976.4,1976.0,0.001]
[1771492274162,0.39957769,1976.3,1976.0,0.001]
[1771492274366,0.71096354,1976.3,1976.0,0.001]
[1771492274690,1.97699641,1976.4,1976.0,0.001]
[1771492274894,0.39960208,1976.3,1976.0,0.001]
[1771492275095,1.97699641,1976.4,1976.0,0.001]
[1771492275263,0.39960208,1976.3,1976.0,0.001]
[1771492275592,0.39960208,1976.2,1976.0,0.001]
[1771492275802,1.97699641,1976.4,1976.0,0.001]
[1771492275962,1.22462048,1976.3,1976.0,0.001]
[1771492276160,0.39962048,1976.2,1976.0,0.001]
[1771492276395,0.825,1976.3,1976.0,0.001]
[1771492276590,0.39963986,1976.2,1976.0,0.001]
[1771492276794,0.825,1976.3,1976.0,0.001]
[1771492276795,2.08999623,1976.3,1976.0,0.001]
[1771492276968,0.39963987,1976.2,1976.0,0.001]
[1771492277294,2.08999623,1976.3,1976.0,0.001]
[1771492277497,0.39966157,1976.2,1976.0,0.001]
[1771492277697,2.08999623,1976.3,1976.0,0.001]
[1771492277896,0.39966157,1976.2,1976.0,0.001]
[1771492278065,2.08999623,1976.3,1976.0,0.001]
[1771492278393,0.39966157,1976.2,1976.0,0.001]
[1771492278574,0.825,1976.3,1976.0,0.001]
[1771492278768,0.39968611,1976.2,1976.0,0.001]
[1771492278973,1.53596354,1976.3,1976.0,0.001]
[1771492279175,0.39968638,1976.2,1976.0,0.001]
[1771492279373,1.53596354,1976.3,1976.0,0.001]
[1771492279591,0.39971176,1976.2,1976.0,0.001]
[1771492279789,0.825,1976.3,1976.0,0.001]
[1771492280093,0.39971176,1976.2,1976.1,0.001]
[1771492283308,1.6647659,1976.2,1976.1,0.001]
[1771492283618,1.6647659,1976.2,1975.9,0.001]
[1771492283619,0.71096354,1976.1,1975.9,0.001]
[1771492283776,10.23886511,1976.2,1975.7,0.001]
[1771492283777,4.14653146,1976.0,1975.7,0.001]
[1771492284102,1.22771176,1975.9,1975.7,0.001]
[1771492284398,0.828,1975.9,1975.7,0.001]
[1771492286073,2.80421342,1975.9,1975.7,0.001]
[1771492286583,1.11056303,1975.8,1975.7,0.001]
[1771492286784,4.14525628,1975.8,1975.7,0.001]
[1771492287280,0.71096354,1975.7,1975.5,0.001]
[1771492287485,1.11040595,1975.6,1975.5,0.001]
[1771492288293,1.97640188,1975.6,1975.5,0.001]
[1771492288685,0.71096354,1975.6,1975.5,0.001]
[1771492288883,2.37567573,1975.6,1975.4,0.001]
[1771492289082,0.71096354,1975.4,1975.1,0.001]
[1771492289678,0.831,1975.5,1975.1,0.001]
[1771492289884,0.39897034,1975.4,1975.1,0.001]
[1771492290084,0.831,1975.5,1975.1,0.001]